[Event "Schack-SM 2023: Mastarklassen"]
[Site "Helsingborg Arena, Mellersta Stenbocksgatan 14, Helsingborg, Sweden"]
[Date "2023.07.02"]
[Round "2.3"]
[White "Franzen, Per-Erik"]
[Black "Nygren, David"]
[Result "1/2-1/2"]
[TimeControl "90 minutes for 40 moves + 30 minutes for the rest of games + 30 seconds per move from move one."]
[WhiteElo "2025"]
[BlackElo "2157"]

1. d4 {[%clk 01:30:57]} {[%emt 00:00:02]} Nf6 {[%clk 01:30:45]} {[%emt
00:00:16]} 2. Nf3 {[%clk 01:30:58]} {[%emt 00:00:28]} e6 {[%clk 01:30:02]}
{[%emt 00:01:13]} 3. c4 {[%clk 01:31:09]} {[%emt 00:00:19]} c5 {[%clk
01:29:55]} {[%emt 00:00:38]} 4. d5 {[%clk 01:29:58]} {[%emt 00:01:41]} exd5
{[%clk 01:30:06]} {[%emt 00:00:19]} 5. cxd5 {[%clk 01:30:22]} {[%emt 00:00:05]}
d6 {[%clk 01:30:24]} {[%emt 00:00:12]} 6. Nc3 {[%clk 01:30:41]} {[%emt
00:00:11]} g6 {[%clk 01:30:11]} {[%emt 00:00:43]} 7. Nd2 {[%clk 01:30:49]}
{[%emt 00:00:22]} Nbd7 {[%clk 01:29:37]} {[%emt 00:01:04]} 8. e4 {[%clk
01:31:03]} {[%emt 00:00:15]} a6 {[%clk 01:28:43]} {[%emt 00:01:25]} 9. a4
{[%clk 01:31:13]} {[%emt 00:00:19]} Bg7 {[%clk 01:28:18]} {[%emt 00:00:56]} 10.
Nc4 {[%clk 01:29:10]} {[%emt 00:02:33]} Nb6 {[%clk 01:27:12]} {[%emt 00:01:36]}
11. Ne3 {[%clk 01:29:22]} {[%emt 00:00:18]} Bd7 {[%clk 01:25:42]} {[%emt
00:02:00]} 12. a5 {[%clk 01:26:16]} {[%emt 00:03:36]} Nc8 {[%clk 01:25:44]}
{[%emt 00:00:28]} 13. Bd3 {[%clk 01:21:57]} {[%emt 00:04:49]} O-O {[%clk
01:21:23]} {[%emt 00:04:49]} 14. O-O {[%clk 01:16:24]} {[%emt 00:06:04]} Bb5
{[%clk 01:14:53]} {[%emt 00:07:01]} 15. Re1 {[%clk 01:01:35]} {[%emt 00:15:18]}
Bxd3 {[%clk 01:06:03]} {[%emt 00:09:21]} 16. Qxd3 {[%clk 01:01:36]} {[%emt
00:00:28]} Nd7 {[%clk 01:05:06]} {[%emt 00:01:27]} 17. Nc4 {[%clk 00:38:13]}
{[%emt 00:23:53]} b5 {[%clk 01:00:23]} {[%emt 00:05:14]} 18. axb6 {[%clk
00:37:56]} {[%emt 00:00:46]} Ncxb6 {[%clk 01:00:08]} {[%emt 00:00:45]} 19. Bf4
{[%clk 00:23:53]} {[%emt 00:14:33]} Nxc4 {[%clk 00:58:55]} {[%emt 00:01:44]} 20.
Qxc4 {[%clk 00:24:18]} {[%emt 00:00:05]} Be5 {[%clk 00:58:33]} {[%emt
00:00:52]} 21. Be3 {[%clk 00:22:49]} {[%emt 00:01:59]} Qf6 {[%clk 00:40:35]}
{[%emt 00:18:27]} 22. Rxa6 {[%clk 00:18:21]} {[%emt 00:04:59]} Bxc3 {[%clk
00:38:15]} {[%emt 00:02:50]} 23. bxc3 {[%clk 00:18:42]} {[%emt 00:00:09]} Ne5
{[%clk 00:35:24]} {[%emt 00:03:21]} 24. Qe2 {[%clk 00:18:09]} {[%emt 00:01:03]}
Rxa6 {[%clk 00:32:39]} {[%emt 00:03:16]} 25. Qxa6 {[%clk 00:18:34]} {[%emt
00:00:04]} Ng4 {[%clk 00:32:51]} {[%emt 00:00:17]} 26. Qe2 {[%clk 00:17:17]}
{[%emt 00:01:48]} h5 {[%clk 00:31:10]} {[%emt 00:02:11]} 27. h3 {[%clk
00:13:32]} {[%emt 00:04:15]} Ne5 {[%clk 00:30:39]} {[%emt 00:01:01]} 28. f4
{[%clk 00:13:08]} {[%emt 00:00:55]} Nd7 {[%clk 00:31:04]} {[%emt 00:00:05]} 29.
Qd3 {[%clk 00:12:03]} {[%emt 00:01:35]} Rb8 {[%clk 00:28:27]} {[%emt 00:03:07]}
30. c4 {[%clk 00:08:49]} {[%emt 00:03:45]} Qh4 {[%clk 00:26:12]} {[%emt
00:02:43]} 31. Bf2 {[%clk 00:05:55]} {[%emt 00:03:25]} Qxf4 {[%clk 00:24:44]}
{[%emt 00:01:58]} 32. Bg3 {[%clk 00:04:51]} {[%emt 00:01:34]} Qf6 {[%clk
00:21:51]} {[%emt 00:03:22]} 33. Rf1 {[%clk 00:04:02]} {[%emt 00:01:19]} Qe7
{[%clk 00:22:08]} {[%emt 00:00:13]} 34. Rb1 {[%clk 00:02:55]} {[%emt 00:01:37]}
Rxb1+ {[%clk 00:18:39]} {[%emt 00:04:00]} 35. Qxb1 {[%clk 00:03:23]} {[%emt
00:00:01]} Ne5 {[%clk 00:18:02]} {[%emt 00:01:07]} 36. Bxe5 {[%clk 00:02:36]}
{[%emt 00:01:18]} Qxe5 {[%clk 00:18:27]} {[%emt 00:00:04]} 37. Qd3 {[%clk
00:02:55]} {[%emt 00:00:12]} Kg7 {[%clk 00:18:03]} {[%emt 00:00:54]} 38. Kf2
{[%clk 00:01:51]} {[%emt 00:01:33]} h4 {[%clk 00:17:43]} {[%emt 00:00:50]} 39.
Qe3 {[%clk 00:01:15]} {[%emt 00:01:06]} f6 {[%clk 00:16:46]} {[%emt 00:01:27]}
40. Ke2 {[%clk 00:00:41]} {[%emt 00:01:03]} Qb2+ {[%clk 00:14:18]} {[%emt
00:02:57]} 41. Kf3 {[%clk 00:23:40]} {[%emt 00:07:34]} Qc2 {[%clk 00:41:49]}
{[%emt 00:02:53]} 42. Qf4 {[%clk 00:20:14]} {[%emt 00:04:01]} Qd1+ {[%clk
00:37:14]} {[%emt 00:05:04]} 43. Kf2 {[%clk 00:19:55]} {[%emt 00:00:49]} Qd4+
{[%clk 00:36:11]} {[%emt 00:01:34]} 44. Kf3 {[%clk 00:19:32]} {[%emt 00:00:53]}
Qd3+ {[%clk 00:34:10]} {[%emt 00:02:29]} 45. Kf2 {[%clk 00:19:00]} {[%emt
00:01:04]} Qd4+ {[%clk 00:28:45]} {[%emt 00:05:56]} 46. Kf3 {[%clk 00:18:37]}
{[%emt 00:00:52]} Qxc4 {[%clk 00:27:50]} {[%emt 00:01:25]} 47. Qxd6 {[%clk
00:17:39]} {[%emt 00:01:28]} Qf1+ {[%clk 00:26:53]} {[%emt 00:01:26]} 48. Ke3
{[%clk 00:17:42]} {[%emt 00:00:28]} Qg1+ {[%clk 00:24:07]} {[%emt 00:03:14]} 49.
Kf3 {[%clk 00:17:18]} {[%emt 00:00:56]} Qd1+ {[%clk 00:22:41]} {[%emt
00:01:57]} 50. Kf2 {[%clk 00:16:25]} {[%emt 00:01:22]} Qd4+ {[%clk 00:17:09]}
{[%emt 00:06:02]} 51. Kf3 {[%clk 00:16:25]} {[%emt 00:00:30]} Qd3+ {[%clk
00:12:58]} {[%emt 00:04:42]} 52. Kf2 {[%clk 00:16:06]} {[%emt 00:00:48]} Qxe4
{[%clk 00:12:02]} {[%emt 00:01:27]} 53. Qxc5 {[%clk 00:15:37]} {[%emt
00:00:59]} Qf4+ {[%clk 00:11:20]} {[%emt 00:01:10]} 54. Kg1 {[%clk 00:12:57]}
{[%emt 00:03:11]} Qe5 {[%clk 00:10:32]} {[%emt 00:01:17]} 55. Qc6 {[%clk
00:11:34]} {[%emt 00:01:54]} Qe3+ {[%clk 00:07:53]} {[%emt 00:03:09]} 56. Kh1
{[%clk 00:10:23]} {[%emt 00:01:41]} Qe1+ {[%clk 00:07:06]} {[%emt 00:01:17]} 57.
Kh2 {[%clk 00:10:51]} {[%emt 00:00:02]} Qe5+ {[%clk 00:07:17]} {[%emt
00:00:19]} 58. Kh1 {[%clk 00:10:42]} {[%emt 00:00:39]} Qe1+ {[%clk 00:07:10]}
{[%emt 00:00:37]} 59. Kh2 {[%clk 00:11:08]} {[%emt 00:00:04]} Qg3+ {[%clk
00:07:36]} {[%emt 00:00:04]} 1/2-1/2

[Event "Schack-SM 2023: Veteran-SM 65+"]
[Site "Helsingborg Arena, Mellersta Stenbocksgatan 14, Helsingborg, Sweden"]
[Date "2023.07.02"]
[Round "2.5"]
[White "Vrabec, Josip"]
[Black "Blomstrom, Lars"]
[Result "0-1"]
[TimeControl "90 minutes for 40 moves + 30 minutes for the rest of games + 30 seconds per move from move one."]
[WhiteElo "1877"]
[BlackElo "2021"]

1. e4 {[%clk 01:30:56]} {[%emt 00:00:02]} e5 {[%clk 01:29:45]} {[%emt
00:01:16]} 2. Nf3 {[%clk 01:31:19]} {[%emt 00:00:07]} Nc6 {[%clk 01:30:13]}
{[%emt 00:00:03]} 3. Bb5 {[%clk 01:31:42]} {[%emt 00:00:07]} a6 {[%clk
01:30:36]} {[%emt 00:00:07]} 4. Bxc6 {[%clk 01:32:05]} {[%emt 00:00:07]} dxc6
{[%clk 01:30:55]} {[%emt 00:00:10]} 5. O-O {[%clk 01:32:28]} {[%emt 00:00:07]}
Qd6 {[%clk 01:31:05]} {[%emt 00:00:19]} 6. d4 {[%clk 01:31:36]} {[%emt
00:01:23]} exd4 {[%clk 01:31:28]} {[%emt 00:00:07]} 7. Qxd4 {[%clk 01:26:04]}
{[%emt 00:06:02]} Qxd4 {[%clk 01:31:26]} {[%emt 00:00:33]} 8. Nxd4 {[%clk
01:26:32]} {[%emt 00:00:02]} Bd7 {[%clk 01:31:44]} {[%emt 00:00:11]} 9. Be3
{[%clk 01:24:55]} {[%emt 00:02:07]} O-O-O {[%clk 01:32:03]} {[%emt 00:00:11]}
10. Nd2 {[%clk 01:21:29]} {[%emt 00:03:56]} Re8 {[%clk 01:31:22]} {[%emt
00:01:11]} 11. f3 {[%clk 01:21:03]} {[%emt 00:00:56]} c5 {[%clk 01:24:48]}
{[%emt 00:07:04]} 12. N4b3 {[%clk 01:20:17]} {[%emt 00:01:16]} b6 {[%clk
01:25:13]} {[%emt 00:00:05]} 13. a4 {[%clk 01:19:29]} {[%emt 00:01:18]} a5
{[%clk 01:25:34]} {[%emt 00:00:10]} 14. Nc4 {[%clk 01:13:58]} {[%emt 00:06:00]}
f5 {[%clk 01:05:42]} {[%emt 00:20:22]} 15. e5 {[%clk 01:10:21]} {[%emt
00:04:07]} Be6 {[%clk 01:01:45]} {[%emt 00:04:27]} 16. Nbd2 {[%clk 01:09:42]}
{[%emt 00:01:09]} Ne7 {[%clk 01:01:34]} {[%emt 00:00:41]} 17. f4 {[%clk
01:02:27]} {[%emt 00:07:45]} Nd5 {[%clk 01:00:13]} {[%emt 00:01:51]} 18. c3
{[%clk 00:55:45]} {[%emt 00:07:12]} Be7 {[%clk 01:00:06]} {[%emt 00:00:37]} 19.
g4 {[%clk 00:48:11]} {[%emt 00:08:04]} h6 {[%clk 00:54:02]} {[%emt 00:06:34]}
20. Kg2 {[%clk 00:46:34]} {[%emt 00:02:05]} Ref8 {[%clk 00:52:57]} {[%emt
00:01:36]} 21. gxf5 {[%clk 00:42:21]} {[%emt 00:04:43]} Bxf5 {[%clk 00:48:54]}
{[%emt 00:04:34]} 22. Rad1 {[%clk 00:37:06]} {[%emt 00:05:45]} g5 {[%clk
00:42:18]} {[%emt 00:07:07]} 23. h3 {[%clk 00:31:37]} {[%emt 00:05:59]} Bd3
{[%clk 00:30:11]} {[%emt 00:12:37]} 24. Rfe1 {[%clk 00:31:36]} {[%emt
00:00:30]} gxf4 {[%clk 00:22:31]} {[%emt 00:08:11]} 25. Bf2 {[%clk 00:31:27]}
{[%emt 00:00:37]} Rhg8+ {[%clk 00:19:38]} {[%emt 00:03:25]} 26. Kh2 {[%clk
00:30:48]} {[%emt 00:01:07]} Bc2 {[%clk 00:14:56]} {[%emt 00:05:14]} 27. Ra1
{[%clk 00:29:17]} {[%emt 00:01:59]} f3 {[%clk 00:10:05]} {[%emt 00:05:22]} 28.
Rg1 {[%clk 00:29:32]} {[%emt 00:00:15]} Bg5 {[%clk 00:10:12]} {[%emt 00:00:22]}
29. Kh1 {[%clk 00:28:09]} {[%emt 00:01:54]} Nf4 {[%clk 00:09:00]} {[%emt
00:01:38]} 30. Rg3 {[%clk 00:15:04]} {[%emt 00:13:39]} Nd3 {[%clk 00:06:43]}
{[%emt 00:02:47]} 31. Rf1 {[%clk 00:11:45]} {[%emt 00:03:48]} Bd1 {[%clk
00:04:27]} {[%emt 00:02:44]} 32. h4 {[%clk 00:06:20]} {[%emt 00:05:59]} Bxd2
{[%clk 00:04:43]} {[%emt 00:00:14]} 33. Nxd2 {[%clk 00:05:00]} {[%emt
00:01:50]} Be2 {[%clk 00:02:29]} {[%emt 00:02:43]} 34. Rxg8 {[%clk 00:03:34]}
{[%emt 00:01:55]} Rxg8 {[%clk 00:02:55]} {[%emt 00:00:04]} 35. Be3 {[%clk
00:03:36]} {[%emt 00:00:29]} Bxf1 {[%clk 00:03:07]} {[%emt 00:00:18]} 36. Nxf1
{[%clk 00:04:02]} {[%emt 00:00:04]} f2 {[%clk 00:02:33]} {[%emt 00:01:03]} 0-1

[Event "Schack-SM 2023: Veteran-SM 50+"]
[Site "Helsingborg Arena, Mellersta Stenbocksgatan 14, Helsingborg, Sweden"]
[Date "2023.07.02"]
[Round "2.5"]
[White "Karlsson, Ulf"]
[Black "Warston, Hakan"]
[Result "1-0"]
[TimeControl "90 minutes for 40 moves + 30 minutes for the rest of games + 30 seconds per move from move one."]
[WhiteElo "1968"]
[BlackElo "1522"]

1. e4 {[%clk 01:30:54]} {[%emt 00:00:05]} e6 {[%clk 01:30:49]} {[%emt
00:00:11]} 2. f4 {[%clk 01:30:59]} {[%emt 00:00:25]} d5 {[%clk 01:30:21]}
{[%emt 00:00:57]} 3. e5 {[%clk 01:31:24]} {[%emt 00:00:06]} c5 {[%clk
01:27:58]} {[%emt 00:02:53]} 4. Nf3 {[%clk 01:31:47]} {[%emt 00:00:07]} Nc6
{[%clk 01:27:30]} {[%emt 00:00:57]} 5. c3 {[%clk 01:31:57]} {[%emt 00:00:21]}
Nge7 {[%clk 01:25:28]} {[%emt 00:02:32]} 6. Na3 {[%clk 01:32:11]} {[%emt
00:00:15]} Nf5 {[%clk 01:21:50]} {[%emt 00:04:09]} 7. Nc2 {[%clk 01:32:12]}
{[%emt 00:00:28]} Be7 {[%clk 01:19:57]} {[%emt 00:02:23]} 8. Be2 {[%clk
01:31:26]} {[%emt 00:01:16]} Qc7 {[%clk 01:17:54]} {[%emt 00:02:33]} 9. O-O
{[%clk 01:30:52]} {[%emt 00:01:04]} O-O {[%clk 01:12:33]} {[%emt 00:05:52]} 10.
Kh1 {[%clk 01:26:22]} {[%emt 00:05:00]} Nh6 {[%clk 01:02:42]} {[%emt 00:10:20]}
11. d4 {[%clk 01:24:59]} {[%emt 00:01:53]} Bd7 {[%clk 00:59:55]} {[%emt
00:03:18]} 12. Be3 {[%clk 01:20:00]} {[%emt 00:05:29]} Nf5 {[%clk 00:57:36]}
{[%emt 00:02:50]} 13. Bf2 {[%clk 01:19:06]} {[%emt 00:01:23]} cxd4 {[%clk
00:57:34]} {[%emt 00:00:33]} 14. cxd4 {[%clk 01:15:09]} {[%emt 00:04:26]} Rac8
{[%clk 00:52:25]} {[%emt 00:05:40]} 15. Rc1 {[%clk 01:08:37]} {[%emt 00:07:01]}
Qb6 {[%clk 00:51:11]} {[%emt 00:01:44]} 16. a3 {[%clk 00:58:44]} {[%emt
00:10:22]} Na5 {[%clk 00:50:14]} {[%emt 00:01:28]} 17. b4 {[%clk 00:58:33]}
{[%emt 00:00:41]} Nc4 {[%clk 00:49:54]} {[%emt 00:00:50]} 18. g4 {[%clk
00:49:35]} {[%emt 00:09:28]} Nh6 {[%clk 00:49:41]} {[%emt 00:00:43]} 19. Rg1
{[%clk 00:44:32]} {[%emt 00:05:33]} f5 {[%clk 00:44:42]} {[%emt 00:05:29]} 20.
exf6 {[%clk 00:40:03]} {[%emt 00:04:59]} gxf6 {[%clk 00:42:35]} {[%emt
00:02:37]} 21. Qf1 {[%clk 00:37:05]} {[%emt 00:03:27]} Rf7 {[%clk 00:39:42]}
{[%emt 00:03:23]} 22. Qh3 {[%clk 00:31:35]} {[%emt 00:06:01]} Bf8 {[%clk
00:39:46]} {[%emt 00:00:26]} 23. g5 {[%clk 00:27:39]} {[%emt 00:04:25]} fxg5
{[%clk 00:37:49]} {[%emt 00:02:27]} 24. Nxg5 {[%clk 00:25:54]} {[%emt
00:02:16]} Rf6 {[%clk 00:35:06]} {[%emt 00:03:13]} 25. Ne4+ {[%clk 00:24:11]}
{[%emt 00:02:13]} Rg6 {[%clk 00:35:22]} {[%emt 00:00:14]} 26. Nf6+ {[%clk
00:22:35]} {[%emt 00:02:05]} Kf7 {[%clk 00:33:31]} {[%emt 00:02:22]} 27. Nxd7
{[%clk 00:21:12]} {[%emt 00:01:53]} Qd8 {[%clk 00:33:31]} {[%emt 00:00:29]} 28.
Nxf8 {[%clk 00:20:45]} {[%emt 00:00:58]} Qxf8 {[%clk 00:33:53]} {[%emt
00:00:08]} 29. Bh5 {[%clk 00:20:40]} {[%emt 00:00:34]} 1-0

[Event "Schack-SM 2023: Sverigemastarklassen"]
[Site "Helsingborg Arena, Mellersta Stenbocksgatan 14, Helsingborg, Sweden"]
[Date "2023.07.02"]
[Round "2.3"]
[White "Seo, Jung Min"]
[Black "Kucuksari, Kaan"]
[Result "1/2-1/2"]
[TimeControl "90 minutes for 40 moves + 30 minutes for the rest of the game + 30 seconds per move from move one."]
[WhiteTitle "IM"]
[BlackTitle "IM"]
[WhiteElo "2469"]
[BlackElo "2512"]

1. d4 {[%clk 01:30:42]} {[%emt 00:00:18]} f5 {[%clk 01:30:53]} {[%emt
00:00:08]} 2. g3 {[%clk 01:29:11]} {[%emt 00:02:01]} Nf6 {[%clk 01:31:19]}
{[%emt 00:00:04]} 3. Bg2 {[%clk 01:29:38]} {[%emt 00:00:03]} g6 {[%clk
01:30:10]} {[%emt 00:01:39]} 4. Nf3 {[%clk 01:15:29]} {[%emt 00:14:39]} Bg7
{[%clk 01:30:22]} {[%emt 00:00:19]} 5. O-O {[%clk 01:15:30]} {[%emt 00:00:29]}
O-O {[%clk 01:30:45]} {[%emt 00:00:07]} 6. c4 {[%clk 01:14:09]} {[%emt
00:01:52]} d6 {[%clk 01:28:56]} {[%emt 00:02:18]} 7. Nc3 {[%clk 01:14:33]}
{[%emt 00:00:06]} c6 {[%clk 01:29:19]} {[%emt 00:00:08]} 8. d5 {[%clk
01:14:28]} {[%emt 00:00:34]} e5 {[%clk 01:29:47]} {[%emt 00:00:02]} 9. dxe6
{[%clk 01:14:41]} {[%emt 00:00:17]} Bxe6 {[%clk 01:30:15]} {[%emt 00:00:02]} 10.
b3 {[%clk 01:15:03]} {[%emt 00:00:08]} Na6 {[%clk 01:30:37]} {[%emt 00:00:08]}
11. Ng5 {[%clk 01:12:23]} {[%emt 00:03:10]} Bc8 {[%clk 01:31:05]} {[%emt
00:00:02]} 12. Bb2 {[%clk 01:09:43]} {[%emt 00:03:10]} Qe7 {[%clk 01:31:34]}
{[%emt 00:00:01]} 13. Qd2 {[%clk 01:02:38]} {[%emt 00:07:36]} h6 {[%clk
01:31:09]} {[%emt 00:00:56]} 14. Nf3 {[%clk 01:03:02]} {[%emt 00:00:05]} Be6
{[%clk 01:31:30]} {[%emt 00:00:09]} 15. Rad1 {[%clk 01:03:09]} {[%emt
00:00:23]} Bf7 {[%clk 01:30:43]} {[%emt 00:01:17]} 16. Rfe1 {[%clk 00:58:29]}
{[%emt 00:05:11]} Rfe8 {[%clk 01:23:45]} {[%emt 00:07:28]} 17. Nh4 {[%clk
00:42:49]} {[%emt 00:16:09]} Nc5 {[%clk 01:18:47]} {[%emt 00:05:29]} 18. Qxd6
{[%clk 00:42:15]} {[%emt 00:01:04]} Qxd6 {[%clk 01:15:38]} {[%emt 00:03:39]} 19.
Rxd6 {[%clk 00:42:35]} {[%emt 00:00:09]} Nfe4 {[%clk 00:46:08]} {[%emt
00:30:00]} 20. Nxe4 {[%clk 00:42:27]} {[%emt 00:00:38]} Nxe4 {[%clk 00:46:34]}
{[%emt 00:00:03]} 21. Bxe4 {[%clk 00:42:51]} {[%emt 00:00:06]} Bxb2 {[%clk
00:46:48]} {[%emt 00:00:16]} 22. Bf3 {[%clk 00:32:36]} {[%emt 00:10:45]} Rad8
{[%clk 00:43:53]} {[%emt 00:03:26]} 23. Red1 {[%clk 00:32:49]} {[%emt
00:00:17]} Rxd6 {[%clk 00:35:54]} {[%emt 00:08:29]} 24. Rxd6 {[%clk 00:33:17]}
{[%emt 00:00:02]} Ba3 {[%clk 00:36:15]} {[%emt 00:00:09]} 25. Rd7 {[%clk
00:29:50]} {[%emt 00:03:56]} Re7 {[%clk 00:36:28]} {[%emt 00:00:18]} 26. Rd8+
{[%clk 00:28:39]} {[%emt 00:01:41]} Kg7 {[%clk 00:36:08]} {[%emt 00:00:50]} 27.
Ng2 {[%emt 00:01:36]} Kf6 {[%clk 00:31:21]} {[%emt 00:05:15]} 28. h4 {[%clk
00:26:20]} {[%emt 00:01:45]} g5 {[%clk 00:23:41]} {[%emt 00:08:10]} 29. hxg5+
{[%clk 00:26:27]} {[%emt 00:00:22]} hxg5 {[%clk 00:24:09]} {[%emt 00:00:02]} 30.
e3 {[%clk 00:24:27]} {[%emt 00:02:31]} Be6 {[%clk 00:20:55]} {[%emt 00:03:45]}
31. Ne1 {[%clk 00:24:04]} {[%emt 00:00:52]} Rd7 {[%clk 00:20:50]} {[%emt
00:00:35]} 32. Rxd7 {[%clk 00:24:17]} {[%emt 00:00:17]} Bxd7 {[%clk 00:21:18]}
{[%emt 00:00:01]} 33. Nd3 {[%clk 00:23:25]} {[%emt 00:01:21]} Be8 {[%clk
00:09:58]} {[%emt 00:11:51]} 34. Kf1 {[%clk 00:23:46]} {[%emt 00:00:08]} Bg6
{[%clk 00:09:14]} {[%emt 00:01:15]} 35. Ke2 {[%clk 00:24:09]} {[%emt 00:00:07]}
f4 {[%clk 00:08:26]} {[%emt 00:01:18]} 36. gxf4 {[%clk 00:24:06]} {[%emt
00:00:33]} Bxd3+ {[%clk 00:07:07]} {[%emt 00:01:49]} 37. Kxd3 {[%clk 00:24:29]}
{[%emt 00:00:06]} gxf4 {[%clk 00:07:35]} {[%emt 00:00:02]} 38. exf4 {[%clk
00:24:51]} {[%emt 00:00:08]} Kf5 {[%clk 00:06:04]} {[%emt 00:02:02]} 39. Bg2
{[%clk 00:25:14]} {[%emt 00:00:06]} Kxf4 {[%clk 00:06:03]} {[%emt 00:00:31]} 40.
Bh3 {[%clk 00:25:42]} {[%emt 00:00:02]} Kf3 {[%clk 00:03:00]} {[%emt 00:03:34]}
41. Bc8 {[%clk 00:26:09]} {[%emt 00:00:02]} c5 {[%clk 00:01:49]} {[%emt
00:01:41]} 42. Bxb7 {[%clk 00:26:36]} {[%emt 00:00:03]} Kxf2 {[%clk 00:02:16]}
{[%emt 00:00:03]} 43. Ke4 {[%clk 00:27:01]} {[%emt 00:00:05]} Ke2 {[%clk
00:02:36]} {[%emt 00:00:10]} 44. Kd5 {[%clk 00:27:21]} {[%emt 00:00:10]} Kd3
{[%clk 00:02:49]} {[%emt 00:00:17]} 45. Bc6 {[%clk 00:27:47]} {[%emt 00:00:03]}
Kc3 {[%clk 00:03:11]} {[%emt 00:00:09]} 46. Ba4 {[%clk 00:28:14]} {[%emt
00:00:03]} Kb2 {[%clk 00:03:32]} {[%emt 00:00:09]} 47. Kc6 {[%clk 00:28:41]}
{[%emt 00:00:02]} Kxa2 {[%clk 00:03:52]} {[%emt 00:00:11]} 48. Kb5 {[%clk
00:29:09]} {[%emt 00:00:02]} Bb4 {[%clk 00:04:03]} {[%emt 00:00:18]} 49. Ka6
{[%clk 00:29:36]} {[%emt 00:00:03]} Kb2 {[%clk 00:04:30]} {[%emt 00:00:04]} 50.
Kxa7 {[%clk 00:30:04]} {[%emt 00:00:03]} Ka2 {[%clk 00:04:56]} {[%emt
00:00:04]} 51. Kb7 {[%clk 00:30:31]} {[%emt 00:00:03]} Kb2 {[%clk 00:05:22]}
{[%emt 00:00:03]} 52. Kc6 {[%clk 00:30:57]} {[%emt 00:00:04]} Ka2 {[%clk
00:05:46]} {[%emt 00:00:06]} 53. Kd5 {[%clk 00:31:22]} {[%emt 00:00:05]} Kb2
{[%clk 00:06:12]} {[%emt 00:00:05]} 54. Ke4 {[%clk 00:31:48]} {[%emt 00:00:03]}
Kc3 {[%clk 00:06:39]} {[%emt 00:00:03]} 55. Kf3 {[%clk 00:32:15]} {[%emt
00:00:03]} Kb2 {[%clk 00:07:05]} {[%emt 00:00:04]} 56. Kg2 {[%clk 00:32:43]}
{[%emt 00:00:02]} Kc3 {[%clk 00:07:29]} {[%emt 00:00:07]} 57. Kh1 {[%clk
00:33:10]} {[%emt 00:00:02]} Kd2 {[%clk 00:07:56]} {[%emt 00:00:04]} 58. Kg2
{[%clk 00:33:34]} {[%emt 00:00:05]} Kc3 {[%clk 00:08:23]} {[%emt 00:00:04]} 59.
Kh1 {[%clk 00:34:02]} {[%emt 00:00:02]} Kd2 {[%clk 00:08:49]} {[%emt 00:00:04]}
60. Kg2 {[%clk 00:34:30]} {[%emt 00:00:02]} Kc3 {[%clk 00:09:15]} {[%emt
00:00:05]} 61. Kh1 {[%clk 00:34:58]} {[%emt 00:00:02]} 1/2-1/2